fUST/lending_fUST_20240811
["ID","MTS","AMOUNT","RATE_DAILY","PERIOD"]
[334634154,1723367461541,-527.88,0.00021917,3]
[334634155,1723367461558,-877.66,0.00021917,3]
[334634156,1723367461574,-519.03537885,0.00021917,3]
[334634157,1723367461601,-1475.32,0.00021917,3]
[334634158,1723367461617,-1473.7,0.00021917,3]
[334634159,1723367461631,-921.95,0.00021917,3]
[334634160,1723367461646,-1020.65,0.00021917,3]
[334634161,1723367461663,-500.0,0.00021917,3]
[334634162,1723367461678,-500.0,0.00021917,3]
[334634163,1723367461692,-500.0,0.00021917,3]
[334634164,1723367461707,-757.02,0.00021917,3]
[334634165,1723367461721,-2764.93,0.00021917,3]
[334634166,1723367461734,-500.0,0.00021917,3]
[334634167,1723367461747,-2237.77,0.00021917,3]
[334634168,1723367461759,-7357.2,0.00021917,3]
[334634169,1723367461774,-500.0,0.00021917,3]
[334634170,1723367461790,-1543.56,0.00021917,3]
[334634171,1723367461806,-1036.02,0.00021917,3]
[334634172,1723367461822,-500.0,0.00021917,3]
[334634173,1723367461839,-12852.88,0.00021917,3]
[334634174,1723367461850,-500.0,0.00021917,3]
[334634175,1723367461862,-1288.41,0.00021917,3]
[334634176,1723367461876,-500.0,0.00021917,3]
[334634177,1723367461890,-4810.34,0.00021917,3]
[334634178,1723367461905,-500.0,0.00021917,3]
[334634179,1723367461919,-1845.77,0.00021917,3]
[334634180,1723367461934,-999.87,0.00021917,3]
[334634181,1723367461948,-500.0,0.00021917,3]
[334634182,1723367461959,-500.0,0.00021917,3]
[334634183,1723367461970,-503.14,0.00021917,3]
[334634184,1723367461982,-2294.31,0.00021917,3]
[334634185,1723367461994,-766.13,0.00021917,3]
[334634186,1723367462006,-2084.63,0.00021917,3]
[334634187,1723367462018,-500.0,0.00021917,3]
[334634188,1723367462030,-500.0,0.00021917,3]
[334634189,1723367462042,-1078.06,0.00021917,3]
[334634190,1723367462054,-500.0,0.00021917,3]
[334634191,1723367462066,-663.18,0.00021917,3]
[334634192,1723367462080,-1152.74,0.00021917,3]
[334634193,1723367462099,-1535.28,0.00021917,3]
[334634194,1723367462110,-1425.43,0.00021917,3]
[334634195,1723367462123,-754.32,0.00021917,3]
[334634196,1723367462135,-504.07,0.00021917,3]
[334634197,1723367462147,-6728.13,0.00021917,3]
[334634198,1723367462158,-1106.57,0.00021917,3]
[334634199,1723367462170,-500.0,0.00021917,3]
[334634200,1723367462184,-500.0,0.00021917,3]
[334634201,1723367462195,-1292.63,0.00021917,3]
[334634202,1723367462212,-2050.27,0.00021917,3]
[334634203,1723367462225,-500.0,0.00021917,3]
[334634204,1723367462237,-500.0,0.00021917,3]
[334634205,1723367462251,-796.28,0.00021917,3]
[334634206,1723367462262,-500.0,0.00021917,3]
[334634207,1723367462276,-500.0,0.00021917,3]
[334634208,1723367462289,-500.0,0.00021917,3]
[334634209,1723367462300,-517.08,0.00021917,3]
[334634210,1723367462313,-1882.79,0.00021917,3]
[334634211,1723367462326,-500.0,0.00021917,3]
[334634212,1723367462351,-500.0,0.00021917,3]
[334634213,1723367462364,-647.90466029,0.00021917,3]
[334634214,1723367462379,-500.0,0.00021917,3]
[334634215,1723367462393,-500.0,0.00021917,3]
[334634216,1723367462405,-500.0,0.00021917,2]
[334634217,1723367462417,-6602.33,0.00021917,3]
[334634218,1723367462430,-500.0,0.00021917,3]
[334634219,1723367462443,-988.72,0.00021917,3]
[334634220,1723367462458,-814.73,0.00021917,3]
[334634221,1723367462468,-500.0,0.00021917,3]
[334634222,1723367462479,-2804.64,0.00021917,3]
[334634223,1723367462489,-500.0,0.00021917,3]
[334634224,1723367462498,-790.1,0.00021917,3]
[334634225,1723367462508,-500.0,0.00021917,3]
[334634226,1723367462518,-754.02,0.00021917,3]
[334634227,1723367462527,-919.44,0.00021917,3]
[334634228,1723367462537,-500.0,0.00021917,3]
[334634229,1723367462546,-500.0,0.00021917,3]
[334634230,1723367462556,-151.0,0.00021918,2]
[334634231,1723367462565,-151.0,0.00021918,2]
[334634232,1723367462574,-151.0,0.00021918,2]
[334634233,1723367462597,-160.0,0.00021918,2]
[334634234,1723367462606,-4185.35085903,0.00021918,2]
[334634235,1723367462615,-1627.2392472,0.00021918,2]
[334634236,1723367462625,-10496.61498137,0.00021918,2]
[334634237,1723367462635,-578.57121671,0.00022,14]
[334634238,1723367462645,-250.15325443,0.00022,2]
[334634239,1723367462655,-4004.84,0.00022,2]
[334634240,1723367462665,-335.2604943,0.00022,2]
[334634241,1723367462674,-582.6755,0.00022,2]
[334634242,1723367462684,-154.76012181,0.00022,2]
[334634243,1723367462694,-155.98503368,0.00022,15]
[334634244,1723367462704,-3674.02,0.00022,14]
[334634245,1723367462714,-151.0,0.00022,2]
[334634246,1723367462724,-151.0,0.00022,2]
[334634247,1723367462734,-302.54622906,0.00022,2]
[334634248,1723367462743,-302.57643837,0.00022,2]
[334634249,1723367462753,-273.99850179,0.00022046,2]
[334634250,1723367462763,-1819.45739035,0.00022137,2]
[334634251,1723367462773,-151.60243242,0.00022164,2]
[334634252,1723367462784,-408.20417994,0.00022168,2]
[334634253,1723367462793,-882.14952086,0.0002217,2]
[334634254,1723367462802,-800.02,0.00022191,3]
[334634255,1723367462813,-530.51016858,0.00022191,3]
[334634256,1723367462823,-500.0,0.00022191,3]
[334634257,1723367462833,-500.0,0.00022191,3]
[334634258,1723367462846,-326.0038997,0.00022191,3]
[334634259,1723367462856,-500.0,0.00022191,3]
[334634260,1723367462866,-500.0,0.00022191,3]
[334634261,1723367462875,-500.0,0.00022191,3]
[334634262,1723367462884,-398.70190098,0.00022191,3]
[334634263,1723367462893,-500.0,0.00022191,3]
[334634264,1723367463179,-500.0,0.00022191,3]
[334634265,1723367463198,-500.0,0.00022191,3]
[334634266,1723367463217,-500.0,0.00022191,3]
[334634267,1723367463227,-500.0,0.00022191,3]
[334634268,1723367463237,-500.0,0.00022191,3]
[334634269,1723367463246,-500.0,0.00022191,3]
[334634270,1723367463257,-500.0,0.00022191,3]
[334634271,1723367463267,-500.0,0.00022191,3]
[334634272,1723367463276,-500.0,0.00022191,3]
[334634273,1723367463286,-922.13,0.00022191,3]
[334634274,1723367463295,-500.0,0.00022191,3]
[334634275,1723367463305,-500.0,0.00022191,3]
[334634276,1723367463314,-810.7,0.00022191,3]
[334634277,1723367463324,-697.41,0.00022191,3]
[334634278,1723367463333,-500.0,0.00022191,3]
[334634279,1723367463343,-553.86,0.00022191,3]
[334634280,1723367463352,-500.0,0.00022191,3]
[334634281,1723367463362,-500.0,0.00022191,3]
[334634282,1723367463373,-500.0,0.00022191,3]
[334634283,1723367463384,-915.89,0.00022191,3]
[334634284,1723367463393,-826.24,0.00022191,3]
[334634285,1723367463403,-937.71,0.00022191,3]
[334634286,1723367463412,-500.0,0.00022191,3]
[334634287,1723367463421,-750.32,0.00022191,3]
[334634288,1723367463430,-378.08408693,0.00022191,3]
[334634289,1723367463438,-500.0,0.00022191,3]
[334634290,1723367463447,-815.4,0.00022191,3]
[334634291,1723367463457,-279.50058016,0.00022191,3]
[334634292,1723367463466,-532.7,0.00022191,3]
[334634293,1723367463475,-556.0,0.00022191,3]
[334634294,1723367463485,-500.0,0.00022191,3]
[334634295,1723367463495,-500.0,0.00022191,3]
[334634296,1723367463503,-500.0,0.00022191,3]
[334634297,1723367463513,-500.0,0.00022191,3]
[334634298,1723367463522,-500.0,0.00022191,3]
[334634299,1723367463532,-500.0,0.00022191,3]
[334634300,1723367463541,-500.0,0.00022191,3]
[334634301,1723367463550,-30.91665836,0.00022191,3]
[334634302,1723367521825,199.61,0.000232,31]
[334634303,1723367521878,199.61,0.000232,31]
[334634304,1723367521925,199.61,0.000232,31]
[334634305,1723367521995,199.61,0.000232,31]
[334634306,1723367522061,199.61,0.000232,31]
[334634307,1723367522123,199.61,0.000232,31]
[334634308,1723367522325,199.61,0.000232,31]
[334634309,1723367522370,199.61,0.000232,31]
[334634310,1723367522420,199.61,0.000232,31]
[334634311,1723367522480,199.61,0.000232,31]
[334634312,1723367522533,199.61,0.000232,31]
[334634313,1723367522588,199.61,0.000232,31]
[334634314,1723367522634,199.61,0.000232,31]
[334634315,1723367522675,199.61,0.000232,31]
[334634316,1723367522709,199.61,0.000232,31]
[334634317,1723367522749,199.61,0.000232,31]
[334634318,1723367522992,199.61,0.000232,31]
[334634319,1723367523030,199.61,0.000232,31]
[334634320,1723367523076,199.61,0.000232,31]
[334634321,1723367523115,199.61,0.000232,31]
[334634327,1723367698130,169.232768,0.00014247,2]
[334634356,1723367811610,1644.63563966,0.00017019,7]
[334634357,1723367897616,1644.63563966,0.00017019,7]
[334634359,1723368134221,159.71,0.000232,31]
[334634360,1723368134276,159.71,0.000232,31]
[334634361,1723368134349,159.71,0.000232,31]
[334634362,1723368134414,159.71,0.000232,31]
[334634363,1723368134469,159.71,0.000232,31]
[334634364,1723368134520,159.71,0.000232,31]
[334634365,1723368134571,159.71,0.000232,31]
[334634366,1723368134640,159.71,0.000232,31]
[334634367,1723368134694,159.71,0.000232,31]
[334634368,1723368134756,159.71,0.000232,31]
[334634369,1723368134811,159.71,0.000232,31]
[334634370,1723368134867,159.71,0.000232,31]
[334634371,1723368134907,159.71,0.000232,31]
[334634372,1723368134946,159.71,0.000232,31]
[334634373,1723368135017,159.71,0.000232,31]
[334634374,1723368135075,159.71,0.000232,31]
[334634375,1723368135152,159.71,0.000232,31]
[334634376,1723368135199,159.71,0.000232,31]
[334634377,1723368135264,159.71,0.000232,31]
[334634378,1723368135317,159.71,0.000232,31]
[334634381,1723368260699,24900.0,0.00014697,2]
[334634382,1723368312311,168.971044,0.00014247,2]
[334634384,1723368345149,-250.0,0.00015183,2]
[334634385,1723368345173,-250.0,0.00015225,2]
[334634386,1723368345196,-250.0,0.00015266,2]
[334634387,1723368345219,-250.0,0.00015308,2]
[334634388,1723368345243,-250.0,0.0001535,2]
[334634389,1723368345266,-250.0,0.00015391,2]
[334634390,1723368345288,-250.0,0.00015433,2]
[334634391,1723368345310,-250.0,0.00015475,2]
[334634392,1723368345333,-250.0,0.00015516,2]
[334634393,1723368345355,-250.0,0.00015558,2]
[334634394,1723368345377,-250.0,0.000156,2]
[334634395,1723368345399,-250.0,0.00015641,2]
[334634396,1723368345421,-250.0,0.00015683,2]
[334634397,1723368345443,-250.0,0.00015725,2]
[334634398,1723368345466,-2278.51525994,0.00015746,3]
[334634399,1723368345487,-7007.90701187,0.00015751,2]
[334634400,1723368345508,-1384.13048712,0.00015751,2]
[334634401,1723368345533,-1612.02584841,0.00015751,2]
[334634402,1723368345554,-3087.63872233,0.00015751,2]
[334634403,1723368345576,-250.0,0.00015766,2]
[334634404,1723368345599,-4056.29130465,0.00015791,2]
[334634406,1723368434223,-300.0,0.00015743,2]
[334634407,1723368434243,-300.0,0.00015743,2]
[334634408,1723368434264,-517.71706128,0.00015744,2]
[334634409,1723368520683,3901.25034131,0.00024,60]
[334634410,1723368560158,-5086.45387328,0.0001561,2]
[334634411,1723368560179,-300.0,0.00015708,2]
[334634412,1723368560201,-300.0,0.00015708,2]
[334634413,1723368560222,-1850.0908179,0.00015709,2]
[334634517,1723368638138,-300.0,0.00015708,2]
[334634518,1723368638148,-223.0,0.00015708,2]
[334634519,1723368638158,-33190.36079709,0.00015709,2]
[334634520,1723368638168,-196.63865106,0.0001571,2]
[334634521,1723368638177,-42377.77535747,0.00015711,2]
[334634522,1723368638187,-338.55541206,0.00015712,2]
[334634523,1723368638197,-307.03073733,0.00015712,2]
[334634524,1723368638207,-601.3570708,0.00015712,2]
[334634525,1723368638219,-250.0,0.00015736,2]
[334634526,1723368638230,-414.28019691,0.00015744,2]
[334634527,1723368638241,-154.76012181,0.00015751,2]
[334634528,1723368638252,-250.0,0.00015779,2]
[334634529,1723368638261,-250.0,0.00015822,2]
[334634530,1723368638271,-244.97937896,0.00015851,2]
[334634531,1723368638280,-250.0,0.00015866,2]
[334634532,1723368638290,-250.0,0.00015909,2]
[334634534,1723368638299,-250.0,0.00015952,2]
[334634536,1723368638308,-250.0,0.00015995,2]
[334634537,1723368638318,-250.0,0.00016038,2]
[334634538,1723368638327,-250.0,0.00016081,2]
[334634539,1723368638336,-150.112233,0.000161,2]
[334634540,1723368638345,-250.0,0.00016125,2]
[334634541,1723368638355,-250.0,0.00016168,2]
[334634542,1723368638364,-250.0,0.00016211,2]
[334634543,1723368638374,-250.0,0.00016254,2]
[334634544,1723368638383,-250.0,0.00016297,2]
[334634545,1723368638392,-807.68900344,0.00016309,2]
[334634546,1723368638401,-250.0,0.0001634,2]
[334634547,1723368638410,-250.0,0.00016383,2]
[334634548,1723368638420,-250.0,0.00016427,2]
[334634549,1723368638429,-207.01365243,0.00016432,2]
[334634550,1723368638439,-250.0,0.0001647,2]
[334634551,1723368638448,-250.0,0.00016513,2]
[334634552,1723368638458,-277.43269753,0.00016532,2]
[334634553,1723368638469,-223.32245684,0.00016532,2]
[334634554,1723368638479,-250.0,0.00016556,2]
[334634555,1723368638488,-150.112233,0.000166,2]
[334634556,1723368638498,-154.79102903,0.00017019,2]
[334634557,1723368638507,-150.112233,0.000171,2]
[334634558,1723368638516,-420.0,0.00017279,2]
[334634559,1723368638526,-150.112233,0.000176,2]
[334634560,1723368638535,-1989.40201653,0.000176,2]
[334634561,1723368638545,-150.112233,0.000179,2]
[334634562,1723368638555,-5013.18441935,0.0001797,2]
[334634563,1723368638564,-500.0,0.00017994,2]
[334634564,1723368638574,-222.02882734,0.00017994,2]
[334634565,1723368638583,-500.0,0.00017994,2]
[334634566,1723368638593,-500.0,0.00017994,2]
[334634567,1723368638607,-500.0,0.00017994,2]
[334634568,1723368638616,-500.0,0.00017994,2]
[334634569,1723368638625,-500.0,0.00017994,2]
[334634570,1723368638635,-500.0,0.00017994,2]
[334634571,1723368638644,-500.0,0.00017994,2]
[334634572,1723368638654,-432.7051566,0.00017994,2]
[334634573,1723368638664,-71318.5027797,0.00017995,2]
[334634574,1723368638674,-46339.17053652,0.00017995,2]
[334634575,1723368638683,-142637.005559,0.00017995,2]
[334634576,1723368638693,-1364.59246336,0.00018,2]
[334634577,1723368638703,-1749.31381177,0.00018,2]
[334634578,1723368638715,-1945.19322452,0.00018,2]
[334634579,1723368638725,-88888.0,0.00018005,2]
[334634580,1723368638735,-150.112233,0.000181,2]
[334634581,1723368638910,-150.112233,0.000182,2]
[334634582,1723368638920,-5013.18441935,0.0001822,2]
[334634583,1723368638930,-3238.07262139,0.00018447,2]
[334634584,1723368638940,-150.112233,0.000185,2]
[334634585,1723368638949,-150.112233,0.000186,2]
[334634586,1723368638958,-5013.18441935,0.0001861,2]
[334634587,1723368638970,-5013.18441935,0.0001879,2]
[334634588,1723368638980,-150.112233,0.000189,2]
[334634589,1723368638989,-486.529055,0.00018904,2]
[334634590,1723368638998,-5013.18441935,0.00018925,2]
[334634591,1723368639007,-153.0,0.00018926,2]
[334634592,1723368639016,-153.0,0.00018926,2]
[334634593,1723368639026,-153.0,0.00018926,2]
[334634594,1723368639035,-153.0,0.00018926,2]
[334634595,1723368639044,-153.0,0.00018926,2]
[334634596,1723368639054,-153.0,0.00018926,2]
[334634597,1723368639064,-153.0,0.00018926,2]
[334634598,1723368639075,-153.0,0.00018926,2]
[334634599,1723368639084,-153.0,0.00018926,2]
[334634600,1723368639093,-153.0,0.00018926,2]
[334634601,1723368639103,-153.0,0.00018926,2]
[334634602,1723368639112,-153.0,0.00018926,2]
[334634603,1723368639122,-153.0,0.00018926,2]
[334634604,1723368639131,-153.0,0.00018926,2]
[334634605,1723368639141,-153.0,0.00018926,2]
[334634606,1723368639150,-153.0,0.00018926,2]
[334634607,1723368639159,-153.0,0.00018926,2]
[334634608,1723368639168,-153.0,0.00018926,2]
[334634609,1723368639178,-1638.49285014,0.00018979,7]
[334634610,1723368639187,-1612.06535955,0.00018979,2]
[334634611,1723368639196,-4056.85985782,0.00018989,2]
[334634612,1723368639206,-2141.01768748,0.00018989,2]
[334634613,1723368639218,-952.621668,0.00018989,2]
[334634614,1723368639227,-3090.31067256,0.00018989,2]
[334634615,1723368639237,-522.80309354,0.00018989,2]
[334634616,1723368639247,-154.90684221,0.00018999,2]
[334634617,1723368639257,-319.99782942,0.00018999,2]
[334634618,1723368639267,-307.30419818,0.00018999,2]
[334634619,1723368639277,-471.24155498,0.00018999,2]
[334634620,1723368639287,-2280.2888261,0.00018999,3]
[334634621,1723368639296,-203.13717281,0.00018999,2]
[334634622,1723368639306,-150.112233,0.00019,2]
[334634623,1723368639317,-156.28091519,0.00019,2]
[334634624,1723368639327,-587.0,0.00019007,2]
[334634625,1723368639337,-71318.5027797,0.00019031,2]
[334634626,1723368639347,-225.26765097,0.00019041,2]
[334634627,1723368639357,-168.59675648,0.00019041,2]
[334634628,1723368639367,-550.69055464,0.00019041,2]
[334634629,1723368639376,-250.0,0.00019041,2]
[334634630,1723368639386,-494.6780177,0.00019046,2]
[334634631,1723368639395,-9651.03918107,0.00019101,2]
[334634632,1723368639404,-8836.92013464,0.00019101,2]
[334634633,1723368639414,-154.76012181,0.00019102,2]
[334634634,1723368639424,-157.95166393,0.00019147,2]
[334634635,1723368639436,-301.25996446,0.00019147,2]
[334634636,1723368639448,-209.37253615,0.00019153,2]
[334634637,1723368639457,-209.37253615,0.00019153,2]
[334634638,1723368639467,-156.87111249,0.00019153,2]
[334634639,1723368639476,-1500.0,0.00019155,2]
[334634640,1723368639486,-1500.0,0.00019155,2]
[334634641,1723368639495,-2126.37973248,0.00019167,2]
[334634642,1723368639505,-509.25680947,0.00019178,2]
[334634643,1723368639514,-175.086846,0.00019178,2]
[334634644,1723368639523,-168.280037,0.00019178,2]
[334634645,1723368639534,-5086.45387321,0.00019223,2]
[334634646,1723368639544,-728.15079492,0.00019256,2]
[334634647,1723368639553,-150.112233,0.000193,2]
[334634649,1723368639563,-151.0,0.00019357,2]
[334634650,1723368639572,-5013.18441935,0.00019406,2]
[334634651,1723368639582,-354.45307919,0.00019451,2]
[334634652,1723368639592,-5240.178669,0.00019477,2]
[334634653,1723368639606,-9430.85260519,0.00019477,2]
[334634654,1723368639616,-5240.178669,0.00019477,2]
[334634655,1723368639626,-1765.03360075,0.00019477,2]
[334634656,1723368639637,-846.23163308,0.00019477,2]
[334634657,1723368639650,-404.08727484,0.00019477,2]
[334634658,1723368639660,-833.66640372,0.00019477,2]
[334634659,1723368639670,-150.112233,0.000195,2]
[334634660,1723368639682,-20777.37607493,0.00019547,2]
[334634661,1723368639692,-816.94684465,0.00019547,4]
[334634662,1723368639702,-5013.18441935,0.00019549,2]
[334634663,1723368639711,-71318.5027797,0.00019567,2]
[334634664,1723368639722,-150.112233,0.000196,2]
[334634665,1723368639732,-151.0,0.0001967,2]
[334634666,1723368639742,-25000.0,0.000197,2]
[334634667,1723368639751,-166094.86483801,0.000198,2]
[334634670,1723368639953,-48611.00846335,0.000198,2]
[334634735,1723368643205,-1881.7993082,0.0001571,2]
[334634736,1723368643215,-1384.13048712,0.00018979,2]
[334634737,1723368643226,-154.76012181,0.00018999,2]
[334634738,1723368643236,-816.94684465,0.00019477,4]
[334634739,1723368643246,-200.0,0.00019773,2]
[334634740,1723368643256,-4805.08278846,0.000198,2]
[334634741,1723368643275,-6057.6610635,0.000198,2]
[334634742,1723368643298,-153.0,0.00018926,2]
[334634743,1723368643308,-185072.37506297,0.000198,2]
[334634744,1723368643317,-242.453515,0.000198,2]
[334634745,1723368643326,-242.453515,0.000198,2]
[334634746,1723368643336,-447.542044,0.000198,2]
[334634747,1723368643345,-447.542044,0.000198,2]
[334634748,1723368643355,-5013.18441935,0.00019965,2]
[334634749,1723368643365,-151.0,0.00019982,2]
[334634750,1723368643376,-20777.37607493,0.00019999,2]
[334634751,1723368643386,-492.86524914,0.00019999,2]
[334634752,1723368643396,-492.86524914,0.00019999,2]
[334634753,1723368643406,-850.13586547,0.00019999,2]
[334634754,1723368643416,-2172.41478583,0.0002,2]
[334634755,1723368643426,-156.5036659,0.0002,2]
[334634756,1723368643436,-150.112233,0.0002,2]
[334634757,1723368643446,-150.112233,0.0002,2]
[334634758,1723368643457,-556.13837088,0.0002,2]
[334634759,1723368643467,-435.0,0.0002,2]
[334634760,1723368643477,-154.85293282,0.0002,2]
[334634761,1723368643487,-154.82729763,0.0002,2]
[334634762,1723368643497,-154.76012181,0.0002,2]
[334634763,1723368643507,-336.48303043,0.0002,2]
[334634764,1723368643517,-49016.30140843,0.0002,2]
[334634765,1723368643527,-1865.57845181,0.0002,2]
[334634766,1723368643537,-294.37791673,0.0002,2]
[334634767,1723368643548,-250.0,0.0002,2]
[334634768,1723368643558,-250.0,0.0002,2]
[334634769,1723368643568,-5013.18441935,0.00020273,2]
[334634770,1723368643578,-427.42147881,0.0002028,2]
[334634771,1723368643588,-150.0,0.00020293,2]
[334634772,1723368643598,-151.0,0.00020295,2]
[334634774,1723368643612,-150.112233,0.000203,3]
[334634775,1723368643622,-1663.10117761,0.00020447,2]
[334634776,1723368643632,-150.112233,0.000205,5]
[334634777,1723368643642,-5013.18441935,0.00020514,2]
[334634778,1723368643653,-476.26460353,0.00020547,7]
[334634779,1723368643663,-586.94,0.00020547,5]
[334634780,1723368643672,-586.94,0.00020547,5]
[334634781,1723368643682,-586.94,0.00020547,5]
[334634782,1723368643691,-586.94,0.00020547,5]
[334634783,1723368643701,-586.94,0.00020547,5]
[334634784,1723368643710,-586.94,0.00020547,5]
[334634785,1723368643721,-294.6834504,0.00020548,2]
[334634786,1723368643730,-294.6834504,0.00020548,2]
[334634787,1723368643740,-294.6834504,0.00020548,2]
[334634788,1723368643750,-294.6834504,0.00020548,2]
[334634789,1723368643760,-507.0,0.00020555,2]
[334634790,1723368643770,-1413.0,0.00020555,2]
[334634791,1723368643779,-150.0,0.00020555,2]
[334634792,1723368643789,-150.0,0.00020597,2]
[334634793,1723368643799,-151.0,0.00020607,2]
[334634794,1723368643809,-151.0,0.00020607,2]
[334634795,1723368643819,-5013.18441935,0.00020685,2]
[334634796,1723368643829,-150.112233,0.000207,5]
[334634797,1723368643839,-151.0,0.00020811,2]
[334634798,1723368643849,-154.090754,0.00020811,2]
[334634799,1723368643858,-151.0,0.00020811,2]
[334634800,1723368643868,-151.0,0.00020811,2]
[334634801,1723368643878,-151.0,0.00020811,2]
[334634802,1723368643889,-234.908896,0.00020811,2]
[334634803,1723368643899,-151.0,0.00020811,2]
[334634804,1723368643908,-234.908896,0.00020811,2]
[334634805,1723368643918,-338.989374,0.00020811,2]
[334634806,1723368643927,-338.989374,0.00020811,2]
[334634807,1723368643937,-172.906861,0.00020811,2]
[334634808,1723368643948,-172.906861,0.00020811,2]
[334634809,1723368643958,-151.0,0.00020811,2]
[334634810,1723368643969,-490.16845,0.00020811,2]
[334634811,1723368643980,-490.16845,0.00020811,2]
[334634812,1723368643990,-586.94,0.0002082,5]
[334634813,1723368644000,-586.94,0.0002082,5]
[334634814,1723368644010,-586.94,0.0002082,5]
[334634815,1723368644020,-586.94,0.0002082,5]
[334634816,1723368644029,-586.94,0.0002082,5]
[334634817,1723368644039,-586.94,0.0002082,5]
[334634818,1723368644049,-586.94,0.0002082,5]
[334634819,1723368644059,-504.43782197,0.00020821,3]
[334634820,1723368644068,-205.30263659,0.00020821,3]
[334634821,1723368644079,-619.68,0.00020821,3]
[334634822,1723368644088,-500.0,0.00020821,3]
[334634823,1723368644098,-500.0,0.00020821,3]
[334634824,1723368644107,-500.0,0.00020821,3]
[334634825,1723368644117,-500.0,0.00020821,3]
[334634826,1723368644127,-500.0,0.00020821,3]
[334634827,1723368644136,-799.86,0.00020821,3]
[334634828,1723368644147,-536.43,0.00020821,3]
[334634829,1723368644157,-500.0,0.00020821,3]
[334634830,1723368644166,-500.0,0.00020821,3]
[334634831,1723368644176,-500.0,0.00020821,3]
[334634832,1723368644185,-500.0,0.00020821,3]
[334634833,1723368644195,-464.2692913,0.00020821,3]
[334634834,1723368644205,-500.0,0.00020821,3]
[334634835,1723368644215,-500.0,0.00020821,3]
[334634836,1723368644225,-500.0,0.00020821,3]
[334634837,1723368644234,-524.37486393,0.00020821,3]
[334634838,1723368644244,-515.80824292,0.00020821,3]
[334634839,1723368644254,-500.0,0.00020821,3]
[334634840,1723368644263,-500.0,0.00020821,3]
[334634841,1723368644273,-500.0,0.00020821,3]
[334634842,1723368644283,-500.0,0.00020821,3]
[334634843,1723368644293,-500.0,0.00020821,3]
[334634844,1723368644303,-500.0,0.00020821,3]
[334634845,1723368644462,-500.0,0.00020821,3]
[334634846,1723368644481,-500.0,0.00020821,3]
[334634847,1723368644492,-500.0,0.00020821,3]
[334634848,1723368644501,-500.0,0.00020821,3]
[334634849,1723368644511,-500.0,0.00020821,3]
[334634850,1723368644521,-200.0,0.00020821,3]
[334634851,1723368644531,-500.0,0.00020821,3]
[334634852,1723368644541,-500.0,0.00020821,3]
[334634853,1723368644550,-794.79,0.00020821,3]
[334634854,1723368644560,-302.94018834,0.00020821,2]
[334634855,1723368644569,-500.0,0.00020821,3]
[334634856,1723368644578,-500.0,0.00020821,3]
[334634857,1723368644589,-500.0,0.00020821,3]
[334634858,1723368644598,-500.0,0.00020821,3]
[334634859,1723368644610,-791.94,0.00020821,3]
[334634860,1723368644620,-458.30393232,0.00020821,3]
[334634861,1723368644629,-500.0,0.00020821,3]
[334634862,1723368644639,-500.0,0.00020821,3]
[334634863,1723368644650,-709.44,0.00020821,3]
[334634864,1723368644660,-500.0,0.00020821,3]